[Event "44th BAN-ch OMICON 2018"]
[Site "Dhaka"]
[Date "2018.11.27"]
[Round "4"]
[White "Swadhin, Sarkar"]
[Black "Ikramul, Haq Siam"]
[Result "0-1"]
[ECO "D00"]
[WhiteElo "1875"]
[BlackElo "2100"]
[Annotator "NA"]
[PlyCount "94"]
[EventDate "2018.11.24"]
[EventType "swiss"]
[EventCountry "BAN"]
[SourceTitle "playchess.com"]
[Source "ChessBase"]
[SourceQuality "1"]
[TimeControl "40/5400+30:1800+30"]

{[%evp 24,80,-27,-83,-40,-103,-34,-50,-29,32767,32767,-66,32767,-60,-58,-50,32767,32767,32767,32767,-33,-46,-38,-53,-59,-121,-116,-111,-91,-108,-92,-120,-123,-113,-104,-102,-104,-88,-77,-84,-92,-96,-50,-192,-168,-206,-279,-433,-499,-458,-640,-579,-639,-396,-508,32767,32767,32767,-671]} 1. d4 {[%emt 1:30:30]} d5 {[%emt 1:30:30]} 2. e3 {[%emt 0:00:30]} Nf6 {[%emt 0:00:30]} 3. Bd3 {[%emt 0:00:30]} c5 {[%emt 0:00:30]} 4. c3 {[%emt 0:00:30]} Nc6 {[%emt 0:00:30]} 5. f4 {[%emt 0:00:30]} Bg4 {[%emt 0:00:30]} 6. Nf3 {[%emt 0:00:30]} e6 {[%emt 0:00:30]} 7. Nbd2 {[%emt 0:00:30]} Bd6 {[%emt 0:00:30] D00: 1 d4 d5: Unusual lines} 8. Nf1 {[%emt 0:00:30]} (8. O-O O-O 9. dxc5 Bxc5 10. Nb3 Bb6 11. Nbd4 Re8 12. Qe1 Bxf3 13. gxf3 e5 14. fxe5 Rxe5 15. Qf2 Rh5 16. Ne2 Ne5 17. Bc2 Qc7 18. Ng3 Rh6 19. Kh1 Nfg4 20. fxg4 {Makowski,T (2332)-Zielasko,A (2351) ICCF email 2016}) 8... Bh5 $146 {[%emt 0:00:30]} ({Predecessor:} 8... Ne4 9. Qc2 Bxf3 10. gxf3 Qh4+ 11. Ke2 Qf2+ 12. Kd1 Qxf3+ 13. Ke1 Qxh1 14. Qb3 Rb8 15. dxc5 Bxc5 16. Bb5 O-O 17. Bd2 Qf3 18. Ng3 Qf2+ {0-1 (18) Vidal Moll,F (1791)-Valbuena Castro,G (1944) Barcelona 2015}) 9. Ng3 {[%emt 0:00:30]} Bg6 {[%emt 0:00:30]} 10. O-O {[%emt 0:00:30]} Bxd3 {[%emt 0:00:30]} 11. Qxd3 {[%emt 0:00:30]} O-O {[%emt 0:00:30]} 12. Ne5 {[%emt 0:00:30]} Rc8 {[%emt 0:00:30]} 13. Rf3 {[%emt 0:00:30]} Ne7 {[%emt 0:00:30]} (13... Qb6 $17) 14. h3 {[%emt 0:00:30]} g6 {[%emt 0:00:30]} (14... h5 $17 15. c4 h4) 15. Ng4 {[%emt 0:00:30]} Nf5 {[%emt 0:00:30]} 16. Nxf6+ {[%emt 0:00:30]} Qxf6 {[%emt 0:00:30]} 17. Bd2 {[%emt 0:00:30]} cxd4 {[%emt 0:00:30]} 18. exd4 {[%emt 0:00:30]} a6 {[%emt 0:00:30]} 19. Ne2 {[%emt 0:00:30]} Nh4 {[%emt 0:00:30]} 20. Rf2 {[%emt 0:00:30]} Qf5 {[%emt 0:00:30]} 21. Qg3 {[%emt 0:00:30]} Be7 {[%emt 0:00:30]} 22. Nc1 {[%emt 0:00:30]} Qe4 {[%emt 0:00:30]} 23. Re2 {[%emt 0:00:30]} Nf5 {[%emt 0:00:30]} 24. Qe1 {[%emt 0:00:30]} (24. Qf2 $15 Bh4 25. Qf1) 24... Qc2 {[%emt 0:00:30]} 25. Be3 {[%emt 0:00:30] [#]} Nxe3 $1 {[%emt 0:00:30]} 26. Rxc2 {[%emt 0:00:30]} Nxc2 {[%emt 0:00:30]} 27. Qd1 {[%emt 0:00:30]} Nxa1 {[%emt 0:00:30]} 28. Nd3 {[%emt 0:00:30]} b5 {[%emt 0:00:30]} 29. a3 {[%emt 0:00:30]} a5 {[%emt 0:00:30]} 30. Qxa1 {[%emt 0:00:30] [#]} b4 $1 {[%emt 0:00:30]} 31. axb4 {[%emt 0:00:30]} axb4 {[%emt 0:00:30]} 32. cxb4 {[%emt 0:00:30]} Bf6 {[%emt 0:00:30]} 33. Qa7 {[%emt 0:00:30]} (33. b3 $1 $15) 33... Rc4 {[%emt 0:00:30]} 34. Ne5 {[%emt 0:00:30]} Bxe5 {[%emt 0:00:30]} ({Don't do} 34... Rxb4 35. Qa3 $19) 35. fxe5 $2 {[%emt 0:00:30]} (35. dxe5 Rxb4 36. f5) 35... Rxb4 {[%emt 0:00:30]} 36. Kh2 {[%emt 0:00:30]} Rb3 {[%emt 0:00:30]} 37. Qe7 {[%emt 0:00:30]} h5 {[%emt 0:00:30]} 38. Qf6 {[%emt 0:00:30]} Rfb8 $19 {[%emt 0:00:30]} 39. h4 {[%emt 0:00:30]} Rxb2 {[%emt 0:00:30]} 40. Qf4 {[%emt 0:00:30]} Re2 {[%emt 0:00:30]} 41. Qf6 {[%emt 0:30:30]} Rbb2 {[%emt 0:30:30]} 42. Qd8+ {[%emt 0:00:30]} Kh7 {[%emt 0:00:30]} 43. Qe7 {[%emt 0:00:30]} Rxg2+ {[%emt 0:00:30]} 44. Kh3 {[%emt 0:00:30]} Rgf2 {[%emt 0:00:30]} 45. Kg3 {[%emt 0:00:30]} Rf5 {[%emt 0:00:30]} 46. Qf8 {[%emt 0:00:30]} Rbf2 {[%emt 0:00:30]} 47. Qe7 {[%emt 0:00:30]} R5f3# {[%emt 0:00:30]} 0-1

[Event "44th BAN-ch OMICON 2018"]
[Site "Dhaka"]
[Date "2018.11.28"]
[Round "5"]
[White "Rahman, Ziaur"]
[Black "Abu Sufian, Shakil"]
[Result "1-0"]
[ECO "C00"]
[WhiteElo "2468"]
[BlackElo "2230"]
[Annotator "RC"]
[PlyCount "135"]
[EventDate "2018.11.24"]
[EventType "swiss"]
[EventCountry "BAN"]
[SourceTitle "playchess.com"]
[Source "ChessBase"]
[SourceQuality "1"]
[TimeControl "40/5400+30:1800+30"]

1. Nf3 {[%emt 0:00:16]} d5 {[%emt 0:00:00]} 2. g3 {[%emt 0:01:07]} Nf6 {[%emt 0:00:03]} 3. Bg2 {[%emt 0:00:12]} e6 {[%emt 0:00:33]} 4. O-O {[%emt 0:01:05]} Be7 {[%emt 0:00:28]} 5. d3 {[%emt 0:03:19]} O-O {[%emt 0:00:17]} 6. Nbd2 {[%emt 0:01:05]} c5 {[%emt 0:00:19]} 7. e4 {[%emt 0:00:47]} Nc6 {[%emt 0:00:11]} 8. Re1 {[%emt 0:00:09]} b5 {[%emt 0:00:59]} 9. e5 {[%emt 0:01:58]} Nd7 {[%emt 0:00:09]} 10. Nf1 {[%emt 0:00:19]} Bb7 {[%emt 0:00:29]} 11. h4 {[%emt 0:00:39]} Qc7 {[%emt 0:00:15]} 12. Bf4 {[%emt 0:00:29]} Rfc8 {[%emt 0:00:06]} 13. Ne3 {[%emt 0:04:26]} Qd8 {[%emt 0:00:25]} 14. c4 {[%emt 0:03:26]} bxc4 {[%emt 0:14:35]} 15. dxc4 {[%emt 0:00:08]} Nb6 {[%emt 0:00:44]} 16. Ng5 {[%emt 0:11:25]} h6 {[%emt 0:08:59]} 17. cxd5 {[%emt 0:03:04]} exd5 {[%emt 0:01:00]} 18. Nxf7 {[%emt 0:13:06]} Kxf7 {[%emt 0:00:18]} 19. Bxh6 {[%emt 0:01:08]} Nd4 {[%emt 0:11:26]} 20. e6+ {[%emt 0:14:57]} Nxe6 {[%emt 0:02:44]} 21. Qh5+ {[%emt 0:07:31]} g6 {[%emt 0:03:40]} 22. Qf3+ {[%emt 0:00:15]} Kg8 {[%emt 0:13:41]} 23. Qg4 {[%emt 0:02:03]} Nf8 {[%emt 0:01:55]} 24. Nf5 {[%emt 0:01:38]} Rc7 {[%emt 0:05:47]} 25. Re6 {[%emt 0:03:44]} Bg5 {[%emt 0:08:04]} 26. Rxg6+ {[%emt 0:10:40]} Nxg6 {[%emt 0:00:06]} 27. Bxg5 {[%emt 0:00:03]} Qe8 {[%emt 0:06:58]} 28. Bf4 {[%emt 0:00:51]} Rc6 {[%emt 0:04:18]} 29. h5 {[%emt 0:01:15]} Bc8 {[%emt 0:00:11]} 30. hxg6 {[%emt 0:00:10]} Bxf5 {[%emt 0:00:26]} 31. Qxf5 {[%emt 0:00:05]} Qxg6 {[%emt 0:00:26]} 32. Bxd5+ {[%emt 0:00:26]} Nxd5 {[%emt 0:00:08]} 33. Qxd5+ {[%emt 0:00:03]} Qe6 {[%emt 0:00:30]} 34. Qg5+ {[%emt 0:01:59]} Qg6 {[%emt 0:01:35]} 35. Qd5+ {[%emt 0:00:36]} Qe6 {[%emt 0:00:10]} 36. Qh5 {[%emt 0:04:43]} Qg6 {[%emt 0:02:17]} 37. Qf3 {[%emt 0:01:35]} Re8 {[%emt 0:00:57]} 38. Rd1 {[%emt 0:00:51]} Qe4 {[%emt 0:09:09]} 39. Qh5 {[%emt 0:00:23]} Qg6 {[%emt 0:00:49]} 40. Qf3 {[%emt 0:00:00]} Qe4 {[%emt 0:00:00]} 41. Qc3 {[%emt 0:11:14]} Qb4 {[%emt 0:11:18]} 42. Qc1 {[%emt 0:06:26]} Qe4 {[%emt 0:06:44]} 43. Bd2 {[%emt 0:03:01]} c4 {[%emt 0:09:03]} 44. Bc3 {[%emt 0:02:41]} Rg6 {[%emt 0:00:30]} 45. Re1 {[%emt 0:03:27]} Qc6 {[%emt 0:00:30]} 46. Rxe8+ {[%emt 0:00:30]} Qxe8 {[%emt 0:00:30]} 47. Qf4 {[%emt 0:00:30]} Qc6 {[%emt 0:04:26]} 48. Qb8+ {[%emt 0:00:39]} Kf7 {[%emt 0:00:30]} 49. Qxa7+ {[%emt 0:00:30]} Ke8 {[%emt 0:03:04]} 50. Qb8+ {[%emt 0:01:06]} Kd7 {[%emt 0:00:30]} 51. Qf4 {[%emt 0:01:32]} Rh6 {[%emt 0:00:48]} 52. f3 {[%emt 0:00:30]} Rd6 {[%emt 0:00:30]} 53. Qf5+ {[%emt 0:00:35]} Ke8 {[%emt 0:00:30]} 54. Kg2 {[%emt 0:02:11]} Re6 {[%emt 0:00:30]} 55. g4 {[%emt 0:02:20]} Qb6 {[%emt 0:01:15]} 56. Qh5+ {[%emt 0:02:04]} Ke7 {[%emt 0:00:30]} 57. Qh4+ {[%emt 0:00:30]} Ke8 {[%emt 0:01:12]} 58. Qf2 {[%emt 0:00:32]} Qc7 {[%emt 0:00:31]} 59. a3 {[%emt 0:03:38]} Qe7 {[%emt 0:00:30]} 60. Qg3 {[%emt 0:00:55]} Re2+ {[%emt 0:00:44]} 61. Kf1 {[%emt 0:00:30]} Qe3 {[%emt 0:00:30]} 62. Qb8+ {[%emt 0:00:36]} Kf7 {[%emt 0:00:34]} 63. Qc7+ {[%emt 0:00:30]} Ke8 {[%emt 0:00:30]} 64. Qc8+ {[%emt 0:00:30]} Ke7 {[%emt 0:00:30]} 65. Bb4+ {[%emt 0:00:30]} Kf6 {[%emt 0:00:30]} 66. Qf5+ {[%emt 0:00:30]} Kg7 {[%emt 0:00:30]} 67. Bc3+ {[%emt 0:00:30]} Kg8 {[%emt 0:00:30]} 68. Qg6+ {[%emt 0:00:30]} 1-0

[Event "44th BAN-ch OMICON 2018"]
[Site "Dhaka"]
[Date "2018.11.28"]
[Round "5"]
[White "Mohammad Fahad, Rahman"]
[Black "Jabed Al Azad"]
[Result "1-0"]
[ECO "B12"]
[WhiteElo "2381"]
[BlackElo "2008"]
[Annotator "RC"]
[PlyCount "89"]
[EventDate "2018.11.24"]
[EventType "swiss"]
[EventCountry "BAN"]
[SourceTitle "playchess.com"]
[Source "ChessBase"]
[SourceQuality "1"]
[TimeControl "40/5400+30:1800+30"]

1. e4 {[%emt 1:30:30]} c6 {[%emt 1:30:30]} 2. d4 {[%emt 0:00:30]} d5 {[%emt 0:00:30]} 3. e5 {[%emt 0:00:30]} Bf5 {[%emt 0:00:30]} 4. Nf3 {[%emt 0:00:30]} e6 {[%emt 0:00:30]} 5. c3 {[%emt 0:00:30]} c5 {[%emt 0:00:30]} 6. Be3 {[%emt 0:00:30]} Qb6 {[%emt 0:00:30]} 7. Qd2 {[%emt 0:00:30]} f6 {[%emt 0:00:30]} 8. Nh4 {[%emt 0:00:30]} Bg4 {[%emt 0:00:30]} 9. Be2 {[%emt 0:00:30]} Bxe2 {[%emt 0:00:30]} 10. Qxe2 {[%emt 0:00:30]} cxd4 {[%emt 0:00:30]} 11. Bxd4 {[%emt 0:00:30]} Bc5 {[%emt 0:00:30]} 12. Bxc5 {[%emt 0:00:30]} Qxc5 {[%emt 0:00:30]} 13. exf6 {[%emt 0:00:30]} gxf6 {[%emt 0:00:30]} 14. Qxe6+ {[%emt 0:00:30]} Qe7 {[%emt 0:00:30]} 15. Qxe7+ {[%emt 0:00:30]} Nxe7 {[%emt 0:00:30]} 16. Na3 {[%emt 0:00:30]} Nbc6 {[%emt 0:00:30]} 17. O-O-O {[%emt 0:00:30]} Rd8 {[%emt 0:00:30]} 18. Rhe1 {[%emt 0:00:30]} Kf7 {[%emt 0:00:30]} 19. Nc2 {[%emt 0:00:30]} Rhg8 {[%emt 0:00:30]} 20. g3 {[%emt 0:00:30]} Rge8 {[%emt 0:00:30]} 21. Nd4 {[%emt 0:00:30]} Nxd4 {[%emt 0:00:30]} 22. Rxd4 {[%emt 0:00:30]} Rd7 {[%emt 0:00:30]} 23. Red1 {[%emt 0:00:30]} Rc7 {[%emt 0:00:30]} 24. Ng2 {[%emt 0:00:30]} Rd8 {[%emt 0:00:30]} 25. Nf4 {[%emt 0:00:30]} Rc5 {[%emt 0:00:30]} 26. Nd3 {[%emt 0:00:30]} Rc4 {[%emt 0:00:30]} 27. Ne5+ {[%emt 0:00:30]} fxe5 {[%emt 0:00:30]} 28. Rxc4 {[%emt 0:00:30]} Nc6 {[%emt 0:00:30]} 29. Rh4 {[%emt 0:00:30]} Kg6 {[%emt 0:00:30]} 30. b4 {[%emt 0:00:30]} a6 {[%emt 0:00:30]} 31. a4 {[%emt 0:00:30]} Ne7 {[%emt 0:00:30]} 32. Kb2 {[%emt 0:00:30]} Rf8 {[%emt 0:00:30]} 33. f4 {[%emt 0:00:30]} e4 {[%emt 0:00:30]} 34. Rg4+ {[%emt 0:00:30]} Kf6 {[%emt 0:00:30]} 35. Rg5 {[%emt 0:00:30]} h6 {[%emt 0:00:30]} 36. Re5 {[%emt 0:00:30]} Rc8 {[%emt 0:00:30]} 37. Kb3 {[%emt 0:00:30]} Rc6 {[%emt 0:00:30]} 38. g4 {[%emt 0:00:30]} b5 {[%emt 0:00:30]} 39. axb5 {[%emt 0:00:30]} axb5 {[%emt 0:00:30]} 40. Ra1 {[%emt 0:00:30]} Re6 {[%emt 0:00:30]} 41. Rxe6+ {[%emt 0:30:30]} Kxe6 {[%emt 0:30:30]} 42. Ra6+ {[%emt 0:00:30]} Kf7 {[%emt 0:00:30]} 43. Rxh6 {[%emt 0:00:30]} Ng6 {[%emt 0:00:30]} 44. Rh5 {[%emt 0:00:30]} e3 {[%emt 0:00:30]} 45. Kc2 {[%emt 0:00:30]} 1-0

[Event "44th BAN-ch OMICON 2018"]
[Site "Dhaka"]
[Date "2018.11.28"]
[Round "5"]
[White "Rahman, Taibur"]
[Black "Anata, Choudhury"]
[Result "1-0"]
[ECO "A45"]
[WhiteElo "2239"]
[BlackElo "2141"]
[Annotator "NA RC"]
[PlyCount "77"]
[EventDate "2018.11.24"]
[EventType "swiss"]
[EventCountry "BAN"]
[SourceTitle "playchess.com"]
[Source "ChessBase"]
[SourceQuality "1"]
[TimeControl "40/5400+30:1800+30"]

{[%evp 25,76,-81,-44,-61,-58,-63,32767,32767,-26,-38,-37,-33,-17,-34,32767,0,6,8,11,32767,2,-26,32767,3,32767,0,1,-117,32767,39,41,-22,32767,39,120,106,104,97,93,108,90,117,111,32767,231,259,32767,250,318,336,366,385,766]} 1. d4 {[%emt 0:00:00]} Nf6 {[%emt 0:00:34]} 2. Bg5 {[%emt 0:01:02]} c5 {[%emt 0:00:15]} 3. Bxf6 {[%emt 0:00:15]} gxf6 {[%emt 0:00:07]} 4. d5 {[%emt 0:01:47]} Qb6 {[%emt 0:00:17]} 5. Qc1 {[%emt 0:00:11]} f5 {[%emt 0:00:39]} 6. g3 {[%emt 0:03:32]} d6 {[%emt 0:02:23] A45: Trompowsky Attack} (6... Bg7 7. c3 Qf6 8. e3 Na6 9. Ne2 Nc7 10. Nf4 Bh6 11. c4 d6 12. Nc3 Bd7 13. Be2 a6 14. a4 b6 15. Nh5 {½-½ (66) Van Wely,L (2692)-Giri,A (2714) Wijk aan Zee 2012}) 7. Nd2 {[%emt 0:01:18]} Nd7 {[%emt 0:00:49]} 8. Bg2 {[%emt 0:00:41]} Nf6 {[%emt 0:00:39]} 9. Nh3 {[%emt 0:00:48]} h5 {[%emt 0:00:45]} 10. c3 {[%emt 0:01:47]} Bh6 {[%emt 0:02:03]} 11. Qc2 {[%emt 0:00:34]} Bd7 {[%emt 0:03:23]} 12. Nf4 {[%emt 0:01:16]} O-O-O {[%emt 0:10:34]} 13. Nc4 $146 {[%emt 0:18:40]} ({Predecessor:} 13. e3 e5 14. dxe6 fxe6 {0-1 (22) Schneider,I (2504)-Lalith,B (2586) Bad Wiessee 2016}) 13... Qc7 {[%emt 0:04:54]} 14. O-O-O {[%emt 0:06:54]} Ng4 {[%emt 0:25:48]} 15. e3 {[%emt 0:09:04]} h4 {[%emt 0:01:31]} 16. Bf3 {[%emt 0:06:28]} Ne5 {[%emt 0:13:44]} 17. Be2 {[%emt 0:03:37]} Kb8 {[%emt 0:00:39]} 18. Kb1 {[%emt 0:02:46]} Bc8 {[%emt 0:00:51]} 19. Ng2 {[%emt 0:01:05]} Bg5 {[%emt 0:13:23]} 20. f4 {[%emt 0:17:12]} h3 {[%emt 0:00:26]} 21. Ne1 {[%emt 0:02:10]} Nxc4 {[%emt 0:00:12]} 22. Bxc4 {[%emt 0:00:07]} Bf6 {[%emt 0:00:11]} 23. Bd3 {[%emt 0:06:23]} c4 {[%emt 0:01:46]} 24. Be2 {[%emt 0:03:04]} ({White should try} 24. Bxf5 $16 Bxf5 25. Qxf5) 24... Qc5 {[%emt 0:08:53]} 25. e4 {[%emt 0:02:07]} e5 {[%emt 0:01:14]} 26. dxe6 {[%emt 0:00:09]} (26. fxe5 $11 {keeps the balance.} dxe5 27. Rf1) 26... fxe6 {[%emt 0:01:16]} 27. exf5 {[%emt 0:01:12]} exf5 {[%emt 0:00:37]} 28. Nf3 {[%emt 0:01:23]} (28. Qd2 $14) 28... Be6 {[%emt 0:04:08]} 29. Qd2 {[%emt 0:03:45]} Bd7 {[%emt 0:00:59]} (29... d5 $14) 30. Qxd6+ {[%emt 0:01:00]} Qxd6 {[%emt 0:00:09]} 31. Rxd6 {[%emt 0:00:01]} Be7 {[%emt 0:00:12]} 32. Rd2 {[%emt 0:04:01]} Bc6 {[%emt 0:00:30]} 33. Rhd1 {[%emt 0:00:06]} Rxd2 {[%emt 0:00:46]} 34. Nxd2 {[%emt 0:00:43]} Rg8 {[%emt 0:01:31]} (34... Rd8 $16 {keeps fighting.}) 35. Nxc4 {[%emt 0:01:22]} ({Don't take} 35. Bxc4 $6 Rd8 $16) 35... Bc5 {[%emt 0:00:40]} 36. Ne5 {[%emt 0:00:15]} Be4+ {[%emt 0:00:12] [#]} 37. Bd3 $1 {[%emt 0:00:16]} Rd8 {[%emt 0:00:05]} 38. Kc2 {[%emt 0:00:16]} Bf3 $18 {[%emt 0:00:15]} (38... Bd5 39. Bxf5 Kc7) 39. Nxf3 {[%emt 0:00:06]} 1-0

[Event "44th BAN-ch OMICON 2018"]
[Site "Dhaka"]
[Date "2018.11.28"]
[Round "5"]
[White "Mohammad, Javed"]
[Black "Nayem, Haque"]
[Result "1/2-1/2"]
[ECO "C11"]
[WhiteElo "2135"]
[BlackElo "2074"]
[Annotator "NA RC"]
[PlyCount "127"]
[EventDate "2018.11.24"]
[EventType "swiss"]
[EventCountry "BAN"]
[SourceTitle "playchess.com"]
[Source "ChessBase"]
[SourceQuality "1"]
[TimeControl "40/5400+30:1800+30"]

1. e4 {[%emt 0:00:00]} e6 {[%emt 0:00:00]} 2. d4 {[%emt 0:00:24]} d5 {[%emt 0:00:00]} 3. Nc3 {[%emt 0:00:07]} Nf6 {[%emt 0:00:00]} 4. e5 {[%emt 0:00:24]} Nfd7 {[%emt 0:00:00]} 5. f4 {[%emt 0:00:07]} c5 {[%emt 0:00:08]} 6. Nf3 {[%emt 0:00:06]} Nc6 {[%emt 0:00:06]} 7. Be3 {[%emt 0:00:11]} Qb6 {[%emt 0:01:37]} 8. Na4 {[%emt 0:08:04]} Qa5+ {[%emt 0:01:03]} 9. c3 {[%emt 0:00:01]} cxd4 {[%emt 0:03:21]} 10. b4 {[%emt 0:00:19]} Qd8 {[%emt 0:09:42]} 11. Nxd4 {[%emt 0:01:12] C11: French: Classical System: 4 e5 and 4 Bg5 dxe4} Nxd4 {[%emt 0:05:26]} 12. Bxd4 {[%emt 0:01:34]} Be7 {[%emt 0:03:09]} (12... Nb8 13. Bd3 Nc6 14. Bf2 g6 15. O-O Bh6 16. Qg4 b6 17. Bh4 Qd7 18. Bf6 O-O 19. Rf3 Nxb4 20. Rh3 Bg7 21. Qh5 gxh5 22. Rg3 {1-0 (22) Brkic,A (2565)-Bukal,V (2398) Pardubice 2017}) 13. Bd3 {[%emt 0:02:40]} Nb8 $146 {[%emt 0:16:39]} ({Predecessor:} 13... f5 14. exf6 Nxf6 15. O-O O-O 16. Qc2 b6 17. Rae1 Bb7 18. Nb2 Rc8 19. Rxe6 {1-0 (47) Arakhamia Grant,K (2376)-Herbold,M (2155) Douglas 2016}) 14. b5 {[%emt 0:18:16]} Nd7 {[%emt 0:02:24]} 15. O-O {[%emt 0:04:25]} g6 {[%emt 0:02:27]} 16. Rc1 {[%emt 0:14:03]} Ba3 {[%emt 0:08:31]} 17. Rc2 {[%emt 0:05:36]} Qa5 {[%emt 0:06:39]} 18. Re2 {[%emt 0:11:50]} (18. Rcf2 $16) 18... Nb6 {[%emt 0:11:01]} (18... a6 $11) 19. Nc5 {[%emt 0:01:12]} Nd7 {[%emt 0:03:37]} 20. Nb3 {[%emt 0:01:11]} Qc7 {[%emt 0:00:11]} 21. f5 {[%emt 0:02:40]} gxf5 {[%emt 0:05:52] [#]} 22. Bxf5 $1 {[%emt 0:00:03]} Nc5 {[%emt 0:00:09]} 23. Bc2 {[%emt 0:06:58]} Nxb3 {[%emt 0:00:56]} 24. axb3 {[%emt 0:01:58]} Bc5 {[%emt 0:00:52]} 25. Ref2 {[%emt 0:01:07]} Bd7 {[%emt 0:06:06]} 26. Rxf7 {[%emt 0:00:54]} O-O-O {[%emt 0:00:29]} 27. b4 {[%emt 0:09:17]} Bb6 {[%emt 0:00:39]} 28. Bxh7 {[%emt 0:00:43]} Qxe5 {[%emt 0:01:34]} 29. Bxb6 {[%emt 0:02:39]} axb6 {[%emt 0:00:06]} 30. Qd4 {[%emt 0:01:57]} Qxd4+ {[%emt 0:01:37]} 31. cxd4 {[%emt 0:00:02]} Bxb5 {[%emt 0:00:46] [#]} (31... Be8 $16 {was necessary.}) 32. R1f6 {[%emt 0:00:25]} (32. Rc1+ $1 $16 Bc4 33. Ra1) 32... Bd7 {[%emt 0:00:48]} 33. g4 {[%emt 0:01:42]} e5 {[%emt 0:04:22]} (33... Be8 $16 {was worth a try.}) 34. dxe5 {[%emt 0:01:07]} ({Don't take} 34. Rxb6 $6 Rhf8 $16) (34. g5 $18) 34... Bxg4 {[%emt 0:00:38]} 35. e6 {[%emt 0:01:15]} ({Better is} 35. Rxb6 $16 Rd7 36. Bg6) 35... Rde8 $2 {[%emt 0:00:14]} (35... Rhe8 $1 $14) 36. e7 {[%emt 0:01:38]} Kd7 {[%emt 0:03:27]} 37. Rxb6 {[%emt 0:00:02]} Kc7 {[%emt 0:00:11] [#]} 38. Rbf6 $2 {[%emt 0:00:24]} Kd7 {[%emt 0:00:09]} 39. Rb6 {[%emt 0:00:54]} Kc7 {[%emt 0:00:02] [#]} 40. Rh6 $1 $18 {[%emt 0:00:00]} d4 {[%emt 0:00:00] [#]} 41. b5 $11 {[%emt 0:05:14]} (41. Rh4 $1 $18 {[%cal Rh4g4]} Be6 42. Rg7) 41... d3 {[%emt 0:08:46]} 42. b6+ {[%emt 0:00:28]} Kd7 {[%emt 0:00:13]} 43. Rf4 {[%emt 0:11:46]} d2 {[%emt 0:12:35]} 44. Rd4+ {[%emt 0:02:07]} Kxe7 {[%emt 0:00:09]} 45. Rxd2 {[%emt 0:00:12]} Reg8 {[%emt 0:05:04]} 46. Rg2 {[%emt 0:06:01]} Rg7 {[%emt 0:01:17]} 47. Rg6 {[%emt 0:00:58]} Rxg6 {[%emt 0:02:56]} 48. Bxg6 {[%emt 0:00:01]} Bf3 {[%emt 0:00:55]} 49. Rg3 {[%emt 0:00:18]} Bd5 {[%emt 0:00:44]} 50. Bd3 {[%emt 0:03:02]} Rg8 {[%emt 0:02:39]} 51. Rxg8 {[%emt 0:02:13]} Bxg8 {[%emt 0:00:02]} 52. Be4 {[%emt 0:01:01]} Kd6 {[%emt 0:00:02]} 53. h4 {[%emt 0:00:48]} Bf7 {[%emt 0:00:06]} 54. Bxb7 {[%emt 0:00:14]} Kc5 {[%emt 0:00:01]} 55. Kf2 {[%emt 0:00:17]} Kxb6 {[%emt 0:00:06]} 56. Bf3 {[%emt 0:00:14]} Kc5 {[%emt 0:00:21]} 57. Ke3 {[%emt 0:00:18]} Kd6 {[%emt 0:00:07]} 58. Kf4 {[%emt 0:00:07]} Ke7 {[%emt 0:00:21]} 59. Kg5 {[%emt 0:00:17]} Kf8 {[%emt 0:00:03]} 60. Kh6 {[%emt 0:00:11]} Kg8 {[%emt 0:00:08]} 61. h5 {[%emt 0:00:06]} Kh8 {[%emt 0:00:12]} 62. Be4 {[%emt 0:00:17]} Bc4 {[%emt 0:00:08]} 63. Kg6 {[%emt 0:00:18]} Bf7+ {[%emt 0:00:12]} 64. Kxf7 {[%emt 0:00:10]} 1/2-1/2

[Event "44th BAN-ch OMICON 2018"]
[Site "Dhaka"]
[Date "2018.11.28"]
[Round "5"]
[White "S M Sharon"]
[Black "Saiful Islam, Chowdhury"]
[Result "0-1"]
[ECO "C47"]
[WhiteElo "2123"]
[BlackElo "2110"]
[Annotator "NA RC"]
[PlyCount "55"]
[EventDate "2018.11.24"]
[EventType "swiss"]
[EventCountry "BAN"]
[SourceTitle "playchess.com"]
[Source "ChessBase"]
[SourceQuality "1"]
[TimeControl "40/5400+30:1800+30"]

{[%evp 25,55,-13,32767,2,35,30,43,-62,0,-26,0,32767,-99,-202,32767,-420,-401,-478,-521,32767,-664,-650,-722,-1164,-1411,-29994,-29995,-29995,-29996,-29996,-29997,-29999]} 1. e4 {[%emt 0:12:00]} e5 {[%emt 0:00:00]} 2. Nf3 {[%emt 0:00:18]} Nc6 {[%emt 0:00:14]} 3. Nc3 {[%emt 0:01:06]} Nf6 {[%emt 0:00:19]} 4. g3 {[%emt 0:00:58]} Bc5 {[%emt 0:01:33]} 5. Bg2 {[%emt 0:00:24]} d6 {[%emt 0:00:24]} 6. h3 {[%emt 0:00:22]} h6 {[%emt 0:01:34]} 7. d3 {[%emt 0:00:10] C47: Scotch Four Knights and Four Knights with 4 g3} Be6 {[%emt 0:00:08]} (7... a6 8. Ne2 Be6 9. O-O Qd7 10. Kh2 g5 11. d4 g4 12. d5 gxf3 13. dxe6 fxe6 14. Bxf3 Qh7 {½-½ (59) Kaczmarek,A (2352)-Mista,A (2587) Krakow 2017}) 8. Na4 {[%emt 0:01:54]} Qe7 {[%emt 0:04:03]} 9. a3 $146 {[%emt 0:13:59]} ({Predecessor:} 9. c3 Bxf2+ 10. Kxf2 b5 11. b4 bxa4 12. Qxa4 Bd7 13. Qc2 Nd8 14. d4 exd4 {0-1 (47) Sahu,S (2277)-Vijayalakshmi,S (2444) Mumbai 2004}) 9... g5 {[%emt 0:03:33]} 10. b4 {[%emt 0:01:22]} Bb6 {[%emt 0:01:31]} 11. Nxb6 {[%emt 0:02:34]} axb6 {[%emt 0:00:10]} 12. Be3 {[%emt 0:00:45]} b5 {[%emt 0:09:40]} 13. Qb1 {[%emt 0:03:48]} d5 {[%emt 0:02:33]} 14. exd5 {[%emt 0:02:51]} Bxd5 {[%emt 0:04:36]} 15. O-O {[%emt 0:03:06]} g4 {[%emt 0:06:18]} 16. Bc5 {[%emt 0:08:01]} (16. hxg4 $1 $14 Nxg4 17. Bd2) 16... Qe6 {[%emt 0:00:52]} 17. hxg4 {[%emt 0:00:58]} b6 {[%emt 0:08:40]} 18. c4 {[%emt 0:16:02]} (18. Be3 $11) 18... bxc4 {[%emt 0:05:12]} 19. dxc4 {[%emt 0:00:25]} (19. b5 $17 {might work better.}) 19... Be4 {[%emt 0:01:14]} ({Weaker is} 19... Bxc4 20. Nd4 $15) 20. Ng5 $2 {[%emt 0:06:31]} (20. Nxe5 Bxg2 21. Kxg2 Nxe5 22. Bd4) 20... hxg5 {[%emt 0:02:33]} 21. Bxe4 {[%emt 0:00:09]} bxc5 {[%emt 0:07:18]} 22. b5 {[%emt 0:01:29]} Nd4 {[%emt 0:00:15]} ({And not} 22... Nxe4 23. Qxe4 {[%mdl 64] Pin} Ra4 24. Qxc6+ Qxc6 25. bxc6 $11) 23. Bxa8 {[%emt 0:00:47]} Qxg4 {[%emt 0:00:45]} 24. Re1 {[%emt 0:06:26] [#]} Nf3+ $1 {[%emt 0:02:40] Double Attack, Discovered Attack (Double check)} 25. Kf1 {[%emt 0:08:02]} Nd2+ {[%emt 0:03:12]} 26. Kg1 {[%emt 0:00:43]} Qh3 {[%emt 0:00:39]} 27. Rxe5+ {[%emt 0:01:42]} Kf8 {[%emt 0:00:28]} 28. Re1 {[%emt 0:07:08]} 0-1